bitfinex/quotes_SOLUSD_20250919
["timestamp","ask_amount","ask_price","bid_price","bid_amount"]
[1758306778137,34.87215246,236.94,236.92,0.7]
[1758306778343,2.33215246,236.94,236.92,0.7]
[1758306778542,34.87215246,236.94,236.92,0.7]
[1758306778727,32.54,236.94,236.9,4.22118481]
[1758306779049,107.28546318,236.96,236.92,0.71]
[1758306779220,31.2,236.94,236.93,0.71]
[1758306781228,2.33215246,236.95,236.93,0.71]
[1758306781760,2.33215246,236.95,236.93,81.16494448]
[1758306782044,41.21331072,236.96,236.94,0.71]
[1758306782252,41.21331072,236.96,236.95,0.71]
[1758306782757,41.21331072,236.96,236.95,85.38524412]
[1758306784225,41.21331072,236.96,236.95,120.25739658]
[1758306784841,41.21331072,236.96,236.95,133.85299059]
[1758306786155,31.2,237.06,236.96,13.59559401]
[1758306786332,34.87215246,237.06,236.99,2.33215246]
[1758306786536,34.87215246,237.06,237.0,0.71]
[1758306786833,34.87215246,237.06,237.0,83.49709694]
[1758306787041,2.33215246,237.06,237.01,33.25]
[1758306787239,2.33215246,237.06,237.02,0.71]
[1758306787435,32.54,237.08,237.02,0.71]
[1758306787436,2.33215246,237.07,237.02,0.71]
[1758306787761,34.03070865,237.08,237.02,0.71]
[1758306788244,1.49070865,237.08,237.03,4.21887524]
[1758306788556,1.49070865,237.08,237.04,0.71]
[1758306788729,1.49070865,237.08,237.05,0.71]
[1758306788929,1.49070865,237.07,237.03,4.21887524]
[1758306789138,1.49070865,237.07,237.04,0.71]
[1758306789349,32.64,237.09,237.04,13.09778264]
[1758306789646,33.25,237.09,237.04,0.71]
[1758306789825,1.49070865,237.07,237.04,0.71]
[1758306791550,1.49070865,237.07,237.04,4.92866219]
[1758306792332,1.49070865,237.06,237.04,4.92866219]
[1758306792653,33.23,237.09,237.04,4.92866219]
[1758306792951,1.49070865,237.07,237.04,4.92866219]
[1758306793726,1.49070865,237.07,237.04,85.38360667]
[1758306794328,0.1,237.09,237.05,0.71]
[1758306794528,1.49070865,237.07,237.04,84.67360667]
[1758306794743,1.49070865,237.07,237.04,81.16494448]
[1758306795159,1.49070865,237.07,237.04,85.38361028]
[1758306795529,1.49070865,237.07,237.05,0.71]
[1758306795750,0.1,237.09,237.05,0.71]
[1758306797036,0.1,237.09,237.06,4.21834134]
[1758306797237,0.1,237.09,237.07,0.71]
[1758306797652,0.1,237.09,237.08,0.71]
[1758306798157,0.1,237.09,237.08,4.92798549]
[1758306799641,0.1,237.09,237.08,85.38292997]
[1758306801250,0.1,237.09,237.08,86.87363862]
[1758306801455,0.1,237.09,237.08,119.39363862]
[1758306801757,0.1,237.09,237.08,132.98923263]
[1758306802962,0.1,237.09,237.08,131.49852398]
[1758306804756,0.1,237.09,237.08,132.98923263]
[1758306804957,0.1,237.09,237.08,84.67292997]
[1758306805560,1.49070865,237.11,237.09,80.35494448]
[1758306806066,31.2,237.14,237.09,80.35494448]
[1758306806265,1.49070865,237.12,237.09,80.35494448]
[1758306806437,1.49070865,237.12,237.09,81.07494448]
[1758306806735,1.49070865,237.12,237.09,80.35494448]
[1758306806965,1.49070865,237.12,237.09,84.57272366]
[1758306807157,1.49070865,237.1,237.09,80.35494448]
[1758306807660,1.49070865,237.11,237.09,80.35494448]
[1758306807851,0.61,237.13,237.09,80.35494448]
[1758306808051,1.49070865,237.11,237.09,80.35494448]
[1758306808452,1.49070865,237.12,237.09,85.29265689]
[1758306808648,1.49070865,237.12,237.09,80.35494448]
[1758306809258,1.69070865,237.15,237.1,0.72]
[1758306809564,0.2,237.15,237.1,33.22]
[1758306809753,0.2,237.15,237.11,0.72]
[1758306810748,0.2,237.15,237.11,4.21745181]
[1758306810949,0.2,237.15,237.12,0.72]
[1758306811556,0.2,237.15,237.12,80.35494448]
[1758306811757,0.2,237.15,237.12,81.07494448]
[1758306811957,0.2,237.15,237.12,85.29218396]
[1758306812549,0.2,237.15,237.12,80.35494448]
[1758306812751,1.49070865,237.14,237.12,80.35494448]
[1758306813252,1.69070865,237.15,237.12,80.35494448]
[1758306813453,0.2,237.15,237.13,0.72]
[1758306813651,0.2,237.15,237.14,0.72]
[1758306813848,0.2,237.15,237.14,80.35494448]
[1758306820574,5.02674045,237.15,237.14,80.35494448]
[1758306822374,0.2,237.15,237.14,80.35494448]
[1758306825169,0.2,237.15,237.14,81.07494448]
[1758306825484,0.2,237.15,237.14,80.35494448]
[1758306825668,0.2,237.15,237.14,81.07494448]
[1758306825868,0.2,237.15,237.14,80.35494448]
[1758306826079,1.69070865,237.15,237.14,80.35494448]
[1758306829081,1.69070865,237.15,237.14,81.07494448]
[1758306829376,0.2,237.15,237.14,81.07494448]
[1758306829591,0.2,237.15,237.14,85.29186275]
[1758306831761,0.2,237.15,237.14,117.79186275]
[1758306833463,0.2,237.15,237.14,113.57494448]
[1758306833984,0.2,237.15,237.14,117.79186275]
[1758306835261,0.1,237.19,237.16,80.15494448]
[1758306835458,0.1,237.19,237.17,32.5]
[1758306835658,0.1,237.19,237.17,33.18]
[1758306835881,1.59070865,237.19,237.17,33.18]
[1758306837280,1.49070865,237.18,237.17,32.5]
[1758306837483,1.49070865,237.18,237.16,112.65494448]
[1758306837685,1.49070865,237.18,237.16,113.33494448]
[1758306837883,0.1,237.19,237.16,113.33494448]
[1758306838079,1.49070865,237.18,237.16,113.33494448]
[1758306838368,0.1,237.19,237.16,116.8714738]
[1758306838692,0.1,237.19,237.17,0.68]
[1758306838894,1.59070865,237.19,237.17,0.68]
[1758306839073,1.59070865,237.19,237.16,116.8714738]
[1758306839390,1.59070865,237.19,237.17,0.67]
[1758306839889,1.59070865,237.19,237.18,0.67]
[1758306840392,0.1,237.19,237.18,85.04115158]
[1758306841982,1.59070865,237.19,237.18,80.82494448]
[1758306842166,2.20070865,237.19,237.08,80.15494448]
[1758306842368,31.2,237.17,237.12,12.67989602]
[1758306842574,31.2,237.17,237.13,0.67]
[1758306842988,31.81,237.17,237.12,112.65494448]
[1758306843188,31.81,237.17,237.12,113.32494448]
[1758306843376,36.02654172,237.17,237.12,113.32494448]
[1758306843573,1.49070865,237.14,237.13,0.67]
[1758306844991,1.49070865,237.14,237.12,112.65494448]
[1758306845167,1.49070865,237.14,237.13,0.67]
[1758306845597,31.2,237.17,237.13,0.67]
[1758306845801,1.49070865,237.14,237.13,0.67]
[1758306845996,1.49070865,237.14,237.13,33.17]
[1758306846199,31.2,237.17,237.13,37.38706599]
[1758306846499,1.49070865,237.18,237.14,0.67]
[1758306846794,1.49070865,237.16,237.15,32.5]
[1758306847172,1.49070865,237.16,237.15,33.17]
[1758306847490,1.49070865,237.16,237.15,32.5]
[1758306848291,1.49070865,237.16,237.14,32.5]
[1758306848502,1.49070865,237.15,237.14,33.17]
[1758306848980,1.49070865,237.15,237.14,0.67]
[1758306849179,1.49070865,237.15,237.14,32.5]
[1758306849697,1.49070865,237.15,237.13,80.15494448]
[1758306849903,2.32799708,237.14,237.13,112.65494448]
[1758306850194,2.32799708,237.14,237.13,80.15494448]
[1758306850375,2.32799708,237.14,237.13,112.65494448]
[1758306850795,2.32799708,237.14,237.06,24.14128792]
[1758306851097,2.32799708,237.09,237.08,4.82644558]
[1758306851399,2.32799708,237.09,237.08,113.32494448]
[1758306851903,2.32799708,237.11,237.08,113.32494448]
[1758306852193,2.32799708,237.11,237.09,0.67]
[1758306852385,2.32799708,237.11,237.1,0.67]
[1758306854092,2.32799708,237.11,237.1,4.88762969]
[1758306854588,2.32799708,237.11,237.1,0.67]
[1758306854792,2.32799708,237.11,237.08,80.15494448]
[1758306854975,2.32799708,237.09,237.08,80.82494448]
[1758306855594,2.32799708,237.1,237.08,80.82494448]
[1758306855780,2.32799708,237.1,237.09,0.67]
[1758306855986,2.32799708,237.12,237.09,33.17]
[1758306856280,2.32799708,237.12,237.1,0.67]
[1758306856681,2.32799708,237.12,237.09,32.5]
[1758306856893,2.32799708,237.12,237.09,33.17]
[1758306857094,2.32799708,237.12,237.1,0.67]
[1758306857291,2.32799708,237.12,237.11,0.67]
[1758306858903,2.32799708,237.12,237.11,80.82494448]
[1758306860402,2.32799708,237.12,237.11,80.15494448]
[1758306860706,2.93799708,237.12,237.11,80.15494448]
[1758306861090,2.32799708,237.12,237.11,80.15494448]
[1758306861789,6.54527103,237.12,237.11,80.15494448]
[1758306862000,2.32799708,237.12,237.11,80.15494448]
[1758306862804,6.54527103,237.12,237.11,80.15494448]
[1758306865005,7.15527103,237.12,237.11,80.15494448]
[1758306865379,6.54527103,237.12,237.11,80.15494448]
[1758306866100,2.32799708,237.12,237.11,80.81494448]
[1758306869905,31.2,237.15,237.11,80.81494448]
[1758306870205,2.32799708,237.13,237.12,0.66]
[1758306870709,32.5,237.18,237.13,0.66]
[1758306870890,32.5,237.18,237.14,0.66]
[1758306871403,4.21623096,237.18,237.14,0.66]
[1758306871606,31.2,237.17,237.14,0.66]
[1758306871807,2.32799708,237.15,237.14,0.66]
[1758306872008,2.32799708,237.15,237.11,80.15494448]
[1758306872211,2.32799708,237.12,237.11,80.15494448]
[1758306872514,2.32799708,237.12,237.11,80.81494448]
[1758306873019,2.32799708,237.12,237.11,80.15494448]
[1758306873386,2.32799708,237.12,237.11,80.81494448]
[1758306874202,2.32799708,237.12,237.11,85.03239629]
[1758306874702,2.32799708,237.12,237.11,80.81494448]
[1758306875602,2.32799708,237.12,237.11,85.03239629]
[1758306880004,2.32799708,237.12,237.11,117.51239629]
[1758306881822,4.21656374,237.16,237.11,117.51239629]
[1758306882009,2.32799708,237.12,237.11,116.85239629]
[1758306882724,2.32799708,237.12,237.11,117.51239629]
[1758306884330,31.2,237.17,237.11,117.51239629]
[1758306884506,2.32799708,237.12,237.11,116.85239629]
[1758306885031,2.32799708,237.12,237.11,117.51239629]
[1758306887424,2.32799708,237.15,237.11,117.51239629]
[1758306887626,2.32799708,237.15,237.12,0.66]
[1758306887934,2.32799708,237.15,237.13,36.69694621]
[1758306888139,2.32799708,237.15,237.13,37.35694621]
[1758306888307,2.32799708,237.15,237.14,0.66]
[1758306888512,2.32799708,237.15,237.14,80.81494448]
[1758306888922,4.31603391,237.19,237.14,80.81494448]
[1758306889122,2.32799708,237.15,237.14,84.37186275]
[1758306889731,2.32799708,237.15,237.14,85.03186275]
[1758306890330,2.32799708,237.15,237.14,80.81494448]
[1758306892216,2.32799708,237.15,237.14,117.51186275]
[1758306893917,2.32799708,237.15,237.14,112.63494448]
[1758306894115,0.61,237.17,237.14,112.63494448]
[1758306894317,2.32799708,237.15,237.14,112.63494448]
[1758306895035,2.32799708,237.15,237.14,80.15494448]
[1758306895442,2.32799708,237.15,237.14,80.81494448]
[1758306897144,2.32799708,237.15,237.14,85.03186275]
[1758306897348,2.32799708,237.16,237.14,85.03186275]
[1758306897530,2.32799708,237.16,237.15,0.67]
[1758306899222,2.32799708,237.16,237.15,37.36674045]
[1758306899625,0.1,237.19,237.15,117.52168493]
[1758306899841,2.32799708,237.16,237.15,80.15494448]
[1758306900536,2.93799708,237.16,237.15,80.15494448]
[1758306900926,2.32799708,237.16,237.15,80.15494448]
[1758306903248,2.32799708,237.16,237.15,80.81494448]
[1758306904649,2.32799708,237.16,237.15,80.15494448]
[1758306908035,2.32799708,237.16,237.15,80.81494448]
[1758306908832,2.32799708,237.17,237.15,85.03168493]
[1758306909048,2.32799708,237.17,237.16,0.66]
[1758306909261,2.32799708,237.17,237.16,80.81494448]
[1758306910975,6.54438195,237.17,237.16,80.15494448]
[1758306911461,2.32799708,237.17,237.16,80.15494448]
[1758306911852,1.48975262,237.17,237.16,80.15494448]
[1758306914778,1.48975262,237.18,237.16,0.66]
[1758306914957,1.48975262,237.17,237.16,6.16]
[1758306915282,1.48975262,237.17,237.16,38.62]
[1758306915853,1.58975262,237.19,237.16,42.83653709]
[1758306916064,1.58975262,237.19,237.17,0.66]
[1758306916262,1.58975262,237.19,237.18,32.46]
[1758306916484,1.58975262,237.19,237.17,0.66]
[1758306916848,1.58975262,237.19,237.17,33.12]
[1758306917056,0.1,237.19,237.18,0.66]
[1758306917662,0.1,237.19,237.18,4.8762071]
[1758306923062,0.1,237.19,237.18,10.68135459]
[1758306924189,0.1,237.19,237.18,90.83629907]
[1758306926760,0.1,237.19,237.18,105.9216457]
[1758306930280,0.1,237.19,237.18,237.1216457]
[1758306935984,0.1,237.23,237.22,4.21549616]
[1758306936281,0.1,237.23,237.22,116.73044064]
[1758306936482,0.1,237.23,237.22,117.41044064]
[1758306937265,0.1,237.23,237.22,119.10066481]
[1758306940184,0.1,237.23,237.22,85.96066481]
[1758306940382,0.1,237.23,237.22,118.42066481]
[1758306940875,0.1,237.23,237.22,119.10066481]
[1758306942784,0.1,237.23,237.22,85.96066481]
[1758306943102,0.1,237.23,237.22,119.10066481]
[1758306945866,0.1,237.23,237.22,119.08066481]
[1758306947572,0.1,237.23,237.22,132.67625882]
[1758306948072,0.1,237.27,237.23,79.95494448]
[1758306948295,0.1,237.27,237.24,32.44]
[1758306948599,0.1,237.27,237.24,33.12]
[1758306948910,0.1,237.27,237.24,34.81008133]
[1758306949289,0.1,237.27,237.25,4.21496311]
[1758306949485,0.1,237.27,237.26,32.44]
[1758306950396,0.1,237.27,237.26,36.65478546]
[1758306951493,0.1,237.27,237.26,116.60972994]
[1758306952003,0.1,237.27,237.26,129.4336362]
[1758306953975,0.1,237.27,237.26,92.77885074]
[1758306954177,0.71,237.27,237.26,92.77885074]
[1758306954379,0.71,237.27,237.26,125.21885074]
[1758306954583,0.71,237.27,237.26,92.77885074]
[1758306955295,0.1,237.27,237.26,92.77885074]
[1758306961323,0.71,237.27,237.26,79.95494448]
[1758306961487,4.92460783,237.27,237.23,79.95494448]
[1758306961684,1.48975262,237.25,237.23,79.95494448]
[1758306962002,1.58975262,237.27,237.23,79.95494448]
[1758306962201,2.19975262,237.27,237.23,79.95494448]
[1758306962506,2.19975262,237.27,237.23,80.60494448]
[1758306963389,2.19975262,237.27,237.23,84.82026209]
[1758306963920,2.19975262,237.27,237.23,97.33343495]
[1758306964610,1.48975262,237.25,237.23,92.46811734]
[1758306964809,4.92465044,237.27,237.23,92.46811734]
[1758306965104,1.48975262,237.25,237.23,92.46811734]
[1758306966221,0.61,237.24,237.19,1.69029559]
[1758306966516,1.48975262,237.21,237.19,1.69029559]
[1758306966693,1.48975262,237.21,237.19,0.65]
[1758306968014,1.48975262,237.21,237.19,13.52195918]
[1758306968389,1.48975262,237.21,237.19,12.87195918]
[1758306968712,4.31535736,237.27,237.2,0.65]
[1758306968924,1.48975262,237.26,237.2,33.09]
[1758306969109,5.80510998,237.27,237.21,0.65]
[1758306969317,1.58975262,237.27,237.21,0.65]
[1758306969610,0.1,237.27,237.22,32.44]
[1758306969800,1.58975262,237.27,237.23,0.65]
[1758306970109,1.58975262,237.27,237.22,32.44]
[1758306970300,2.19975262,237.27,237.22,37.3054493]
[1758306970512,1.58975262,237.27,237.23,0.65]
[1758306971013,1.58975262,237.27,237.24,0.65]
[1758306971212,1.58975262,237.27,237.25,0.65]
[1758306971593,1.58975262,237.27,237.26,0.65]
[1758306971793,0.1,237.27,237.26,80.60494448]
[1758306972001,0.1,237.27,237.26,84.81972994]
[1758306978599,0.1,237.27,237.26,117.25972994]
[1758306979115,0.1,237.27,237.26,80.60494448]
[1758306979322,0.1,237.27,237.26,112.39494448]
[1758306979508,0.1,237.27,237.26,79.95494448]
[1758306981933,0.1,237.27,237.25,36.65491285]
[1758306981934,4.92460783,237.27,237.25,79.95494448]
[1758306982130,2.32528499,237.26,237.25,79.95494448]
[1758306982302,2.32528499,237.26,237.25,80.60494448]
[1758306982501,0.1,237.27,237.25,80.60494448]
[1758306982798,2.42528499,237.27,237.25,80.60494448]
[1758306983516,3.03528499,237.27,237.25,79.95494448]
[1758306983714,0.61,237.26,237.25,79.95494448]
[1758306983928,4.82478546,237.26,237.25,79.95494448]
[1758306984110,4.21478546,237.26,237.25,79.95494448]
[1758306984311,4.82478546,237.26,237.25,79.95494448]
[1758306984705,4.21478546,237.26,237.25,79.95494448]
[1758306985423,4.82478546,237.26,237.25,79.95494448]
[1758306985621,31.2,237.24,237.21,79.95494448]
[1758306985828,2.32528499,237.22,237.21,79.95494448]
[1758306988026,6.54078115,237.22,237.21,79.95494448]
[1758306990242,67.85523566,237.24,237.21,80.61494448]
[1758306990449,2.32528499,237.22,237.21,80.61494448]
[1758306991024,35.41523566,237.24,237.21,80.61494448]
[1758306991025,2.32528499,237.24,237.21,80.61494448]
[1758306991547,2.32528499,237.24,237.22,0.66]
[1758306992245,6.54054316,237.24,237.21,79.95494448]
[1758306992426,2.32528499,237.22,237.21,79.95494448]
[1758306994932,2.32528499,237.22,237.21,80.61494448]
[1758306996324,2.32528499,237.22,237.21,79.95494448]
[1758306997043,84.17115847,237.22,237.19,79.95494448]
[1758306997346,2.32528499,237.2,237.19,79.95494448]
[1758306997531,2.93528499,237.2,237.19,79.95494448]
[1758306997924,2.32528499,237.2,237.19,79.95494448]
[1758306998427,6.54113659,237.2,237.19,79.95494448]
[1758306999129,6.54113659,237.2,237.14,32.44]
[1758306999130,6.54113659,237.2,237.15,79.95494448]
[1758306999357,2.32528499,237.17,237.15,79.95494448]
[1758306999530,2.32528499,237.17,237.15,80.61494448]
[1758307001433,6.54175895,237.17,237.15,93.08679772]
[1758307002125,31.2,237.18,237.15,93.08679772]
[1758307002332,2.32528499,237.16,237.15,93.08679772]
[1758307002531,2.32528499,237.16,237.13,79.95494448]
[1758307002732,2.32528499,237.14,237.13,80.61494448]
[1758307005848,2.32528499,237.14,237.13,93.37756413]
[1758307009441,4.2165952,237.16,237.13,93.37756413]
[1758307009640,2.32528499,237.14,237.13,92.71756413]
[1758307010172,2.32528499,237.14,237.13,93.37756413]
[1758307020674,2.32528499,237.14,237.13,97.59466023]
[1758307021172,2.32528499,237.14,237.13,93.37756413]
[1758307022772,31.2,237.18,237.13,97.59466023]
[1758307022952,2.32528499,237.17,237.14,33.14]
[1758307023164,2.32528499,237.16,237.14,33.14]
[1758307023663,2.32528499,237.16,237.14,32.44]
[1758307024164,2.32528499,237.16,237.14,0.7]
[1758307024978,2.32528499,237.16,237.14,80.65494448]
[1758307026378,2.32528499,237.16,237.15,0.7]
[1758307027379,33.52528499,237.18,237.15,4.91674045]
[1758307027758,33.52528499,237.18,237.16,0.7]
[1758307030877,33.52528499,237.18,237.16,80.65494448]
[1758307032784,33.52528499,237.18,237.16,79.95494448]
[1758307033889,1.48959714,237.17,237.16,80.65494448]
[1758307034663,1.48959714,237.17,237.16,79.95494448]
[1758307035095,1.48959714,237.17,237.16,80.65494448]
[1758307035580,1.48959714,237.17,237.16,79.95494448]
[1758307036187,1.48959714,237.17,237.16,80.65494448]
[1758307037371,1.48959714,237.17,237.16,79.95494448]
[1758307037991,1.48959714,237.17,237.15,0.7]
[1758307038790,4.21568767,237.21,237.16,0.7]
[1758307039090,1.48959714,237.2,237.16,79.95494448]
[1758307039592,1.48959714,237.2,237.17,0.7]
[1758307039766,1.48959714,237.2,237.18,0.7]
[1758307040167,1.48959714,237.2,237.16,84.17141965]
[1758307040483,1.48959714,237.22,237.19,0.7]
[1758307040685,0.1,237.27,237.19,113.09494448]
[1758307040876,1.48959714,237.25,237.2,0.7]
[1758307041187,1.48959714,237.25,237.21,32.44]
[1758307041494,1.48959714,237.25,237.22,0.7]
[1758307042286,1.48959714,237.25,237.23,0.7]
[1758307045074,1.48959714,237.24,237.23,0.7]
[1758307045275,1.48959714,237.25,237.22,4.2154423]
[1758307045688,1.48959714,237.25,237.22,84.17038678]
[1758307045876,1.48959714,237.25,237.23,0.71]
[1758307046690,1.58959714,237.27,237.24,0.71]
[1758307046898,1.58959714,237.27,237.25,0.71]
[1758307047082,1.48959714,237.26,237.24,79.95494448]
[1758307047280,1.48959714,237.25,237.24,79.95494448]
[1758307047495,1.48959714,237.26,237.24,80.66494448]
[1758307047688,1.58959714,237.27,237.25,0.71]
[1758307047894,1.48959714,237.26,237.24,79.95494448]
[1758307048086,0.1,237.27,237.25,0.71]
[1758307048289,0.1,237.27,237.25,4.92484578]
[1758307048685,0.1,237.27,237.26,0.71]
[1758307050196,0.1,237.27,237.26,84.87972994]
[1758307051806,1.58959714,237.27,237.26,84.87972994]
[1758307052604,0.1,237.27,237.26,84.87972994]
[1758307052904,0.1,237.27,237.26,80.66494448]
[1758307053090,1.58959714,237.27,237.26,79.95494448]
[1758307053790,1.58959714,237.27,237.26,80.66494448]
[1758307054202,0.1,237.27,237.26,80.66494448]
[1758307055307,1.58959714,237.27,237.26,80.66494448]
[1758307057389,1.58959714,237.27,237.26,79.95494448]
[1758307057591,1.58959714,237.27,237.26,80.66494448]
[1758307057986,0.1,237.27,237.26,80.66494448]
[1758307058199,1.58959714,237.27,237.26,80.66494448]
[1758307058599,0.1,237.27,237.26,80.66494448]
[1758307058906,1.58959714,237.27,237.26,80.66494448]
[1758307059812,1.58959714,237.27,237.26,84.87972994]
[1758307059998,0.1,237.27,237.26,84.87972994]
[1758307062007,0.1,237.27,237.26,117.29972994]
[1758307062791,1.58959714,237.27,237.26,113.08494448]
[1758307063506,1.58959714,237.27,237.26,80.66494448]
[1758307063709,1.58959714,237.27,237.26,79.95494448]
[1758307064993,0.1,237.27,237.26,84.87972994]
[1758307065209,30.68846083,237.31,237.26,84.87972994]
[1758307065493,30.68846083,237.31,237.27,0.71]
[1758307065494,1.48959714,237.28,237.27,0.71]
[1758307066500,1.48959714,237.28,237.27,80.66494448]
[1758307067092,1.48959714,237.28,237.27,79.95494448]
[1758307070111,5.70402734,237.28,237.27,79.95494448]
[1758307070315,6.31402734,237.28,237.22,79.95494448]
[1758307070522,1.48959714,237.23,237.22,79.95494448]
[1758307070708,1.48959714,237.23,237.22,80.66494448]
[1758307071694,1.48959714,237.23,237.22,79.95494448]
[1758307072114,1.48959714,237.23,237.2,79.95494448]
[1758307072321,1.48959714,237.21,237.16,0.71]
[1758307072500,1.48959714,237.17,237.16,0.71]
[1758307074522,1.48959714,237.17,237.16,4.92656265]
[1758307074833,1.48959714,237.18,237.16,4.92656265]
[1758307075036,1.48959714,237.18,237.17,0.71]
[1758307077422,1.48959714,237.18,237.17,4.92638487]
[1758307077623,1.48959714,237.19,237.17,4.92638487]
[1758307078011,4.21546747,237.23,237.17,4.21638487]
[1758307078211,1.48959714,237.19,237.17,4.21638487]
[1758307078418,4.21546747,237.23,237.17,84.88132935]
[1758307078724,1.48959714,237.19,237.17,84.88132935]
[1758307079902,1.48959714,237.19,237.18,0.66]
[1758307080708,1.48959714,237.2,237.18,0.66]
[1758307080910,1.48959714,237.2,237.19,0.66]
[1758307081108,36.6151483,237.24,237.19,0.66]
[1758307081417,1.48959714,237.21,237.19,0.66]
[1758307083116,1.48959714,237.21,237.18,4.21613407]
[1758307083324,1.48959714,237.2,237.18,4.87613407]
[1758307084322,1.48959714,237.2,237.18,84.83107855]
[1758307084626,1.48959714,237.2,237.18,84.17107855]
[1758307084821,1.48959714,237.2,237.18,84.83107855]
[1758307085926,1.48959714,237.2,237.19,0.66]
[1758307086315,1.48959714,237.2,237.18,84.17107855]
[1758307086504,1.48959714,237.2,237.18,84.83107855]
[1758307086705,1.48959714,237.21,237.18,84.83107855]
[1758307087419,1.48959714,237.21,237.18,84.17107855]
[1758307087602,1.48959714,237.21,237.18,84.83107855]
[1758307087805,1.48959714,237.21,237.18,84.17107855]
[1758307088028,1.48959714,237.21,237.19,0.66]
[1758307088423,1.48959714,237.21,237.19,4.87594809]
[1758307088616,1.48959714,237.24,237.2,0.66]
[1758307088822,1.48959714,237.25,237.2,0.66]
[1758307089126,1.48959714,237.24,237.2,0.66]
[1758307089822,1.48959714,237.24,237.21,4.21567387]
[1758307090123,1.48959714,237.24,237.22,0.66]
[1758307091212,1.48959714,237.24,237.23,0.66]
[1758307091412,1.48959714,237.24,237.23,80.61494448]
[1758307091613,32.4,237.28,237.23,80.61494448]
[1758307091912,1.48959714,237.24,237.23,80.61494448]
[1758307092107,1.48959714,237.24,237.23,79.95494448]
[1758307093607,0.61,237.26,237.23,79.95494448]
[1758307093804,4.82483804,237.26,237.23,79.95494448]
[1758307094018,2.32618057,237.24,237.23,79.95494448]
[1758307095631,2.32618057,237.25,237.23,79.95494448]
[1758307096232,2.32618057,237.25,237.23,80.61494448]
[1758307096526,2.32618057,237.25,237.23,79.95494448]
[1758307097026,2.32618057,237.24,237.23,79.95494448]
[1758307098526,4.21440919,237.29,237.23,79.95494448]
[1758307098729,4.21440919,237.29,237.24,0.66]
[1758307098730,33.52618057,237.27,237.24,0.66]
[1758307098933,33.52618057,237.27,237.23,84.17026294]
[1758307099127,2.32618057,237.26,237.25,0.66]
[1758307101138,2.32618057,237.26,237.23,79.95494448]
[1758307101316,2.32618057,237.26,237.24,0.66]
[1758307101815,2.32618057,237.26,237.23,79.95494448]
[1758307102133,2.32618057,237.26,237.23,80.61494448]
[1758307102311,2.32618057,237.26,237.24,0.66]
[1758307102713,4.21453416,237.28,237.23,84.17024344]
[1758307102913,2.32618057,237.25,237.24,0.66]
[1758307104432,2.32618057,237.26,237.24,4.87514078]
[1758307104730,2.84065662,237.29,237.25,0.66]
[1758307104731,2.32618057,237.27,237.25,0.66]
[1758307104930,2.32618057,237.27,237.24,84.17008526]
[1758307105117,2.32618057,237.26,237.25,0.66]
[1758307107433,31.2,237.3,237.25,4.87496311]
[1758307107641,2.32618057,237.28,237.26,0.72]
[1758307108039,2.32618057,237.28,237.26,80.67494448]
[1758307110141,2.32618057,237.28,237.26,84.88972664]
[1758307112045,2.32618057,237.27,237.26,84.88972664]
[1758307113222,2.32618057,237.27,237.26,80.67494448]
[1758307113944,31.2,237.3,237.26,80.67494448]
[1758307114126,2.32618057,237.27,237.26,84.88972274]
[1758307118025,33.52618057,237.27,237.26,79.95494448]
[1758307118350,38.3507884,237.27,237.26,79.95494448]
[1758307118855,70.7307884,237.27,237.21,79.95494448]
[1758307119147,2.32618057,237.22,237.21,79.95494448]
[1758307120448,7.15167673,237.22,237.21,79.95494448]
[1758307121151,6.54167673,237.22,237.21,79.95494448]
[1758307121320,6.54167673,237.22,237.17,0.72]
[1758307121646,2.32618057,237.18,237.16,79.95494448]
[1758307121847,2.32618057,237.17,237.16,79.95494448]
[1758307122036,2.32618057,237.17,237.16,80.67494448]
[1758307124929,35.41549616,237.22,237.16,80.67494448]
[1758307125131,2.32618057,237.17,237.16,79.95494448]
[1758307125659,2.32618057,237.17,237.16,80.67494448]
[1758307131843,2.32618057,237.17,237.16,84.89150713]
[1758307135966,2.32618057,237.17,237.16,79.95494448]
[1758307137145,2.32618057,237.17,237.16,80.62494448]
[1758307137343,4.21567421,237.21,237.16,80.62494448]
[1758307137539,2.32618057,237.17,237.16,80.62494448]
[1758307139057,2.32618057,237.17,237.16,79.95494448]